Cogmind - Beta 14 @@@ ROGUE MODE // 2025.01.08 @ 14:12:17 Player: Derk Result: Escaped! Performance ------------- Evolutions (9) 4500 Regions Visited (21) 4200 Robots Destroyed (244) 1220 Value Destroyed (11561) 11561 Prototype IDs (41) 820 Alien Tech Used (1) 200 Bonus (10361) 10361 TOTAL SCORE: 32862 Bonus ------- High Alert Combat Kills 1804 Follower Combat Kills 2390 Network Hubs Disabled 200 Registered with UFD 300 Met Warlord at Base 500 MAIN.C Attacked Warlord 500 Warlord Defense Kills 3216 Win 3000 Friendly Fire -1549 Cogmind --------- Core Integrity 1576/1600 Matter 229/300 Energy 214/220 System Corruption 0% Temperature Warm (110) Movement Flying (27) Location To Epsilon Eridani Parts ------- > --- POWER (2) -------- Light Antimatter Reactor Micro Antimatter Reactor > --- PROPULSION (8) --- Impulse Thruster Array Impulse Thruster Array Impulse Thruster Array Cooled Q-thruster Cooled Q-thruster > --- UTILITY (11) ----- Improved Armor Integrity Analyzer Layered Heavy Armor Plating Graphene Brace Improved System Guard Improved Trap Extractor (0/6) > --- WEAPON (4) ------- Compact HERF Cannon > --- INVENTORY (5) ---- Layered Heavy Armor Plating Enhanced Quantum Rifle Peak State ------------ > --- POWER ------------ Light Antimatter Reactor Micro Antimatter Reactor > --- PROPULSION ------- Impulse Thruster Array Impulse Thruster Array Impulse Thruster Array Cooled Q-thruster Cooled Q-thruster > --- UTILITY ---------- Advanced Heat Sink Improved Armor Integrity Analyzer Recoil Nullifier Layered Heavy Armor Plating Graphene Brace Improved System Guard Improved Trap Extractor > --- WEAPON ----------- Compact HERF Cannon > --- INVENTORY -------- Layered Heavy Armor Plating Enhanced Quantum Rifle [Rating: 141] Favorites ----------- Power Neutrino Core Engine Angular Momentum Engine Power Core Neutrino Core Reactor Particle Reactor Propulsion Overtuned Huge Scrapsphere Treads Light Treads Leg Carbon-fiber Leg Wheel Overtuned Huge Scrapsphere Hover Unit Antigrav Array Flight Unit Xenon Bombardment Thruster Utility Coolant Injector Device Coolant Injector Storage Large Storage Unit Processor Targeting Computer Protection Centrium Medium Armor Plating Weapon Overtuned Coil Gun Energy Gun Overtuned Beamcaster Energy Cannon EM Pulse Cannon Ballistic Gun Overtuned Coil Gun Ballistic Cannon Hardcell Cannon Launcher Heavy Rocket Launcher Special Weapon Mining Laser Impact Weapon Impact Mace Slashing Weapon Phasing Sabre Special Melee Weapon Improved Datajack Build | -11 -10 -10 -10 -8 -7 -7 -7 -7 -5 -5 -5 -5 -5 -4 -4 -4 -4 -3 -3 -2 -1 ------- Run | Yrd Mat Min Sub Mat Fac Sto Rec Scr Fac Ext Cet Arc Hub Fac Upp Upp War Pro Res Res Acc Slots Evolved 18 | . . . . 4 2 . . . 4 . . . . 2 . . . . 2 2 2 Power 1 | . . . . . . . . . 1 . . . . . . . . . . . . Propulsion 6 | . . . . 1 1 . . . 1 . . . . . . . . . . 1 2 Utility 9 | . . . . 3 1 . . . 1 . . . . 2 . . . . 1 1 . Weapon 2 | . . . . . . . . . 1 . . . . . . . . . 1 . . Parts Attached 315 | 7 12 16 6 23 17 25 4 8 40 30 7 4 8 44 2 5 14 3 13 24 3 Power 27 | 1 1 . . 2 2 4 . 1 3 1 . 1 . 3 . . 2 . 3 2 1 Engine 8 | 1 1 . . 2 . 2 . 1 1 . . . . . . . . . . . . Core 9 | . . . . . 2 2 . . 2 1 . . . 2 . . . . . . . Reactor 10 | . . . . . . . . . . . . 1 . 1 . . 2 . 3 2 1 Propulsion 52 | 2 1 3 3 3 4 5 1 2 5 . 1 . 1 4 . . 2 . 4 10 1 Treads 16 | 2 1 2 . . . 1 1 2 2 . 1 . 1 . . . 2 . 1 . . Leg 6 | . . . . 3 1 2 . . . . . . . . . . . . . . . Wheel 17 | . . 1 3 . 3 2 . . 3 . . . . 4 . . . . . 1 . Hover 3 | . . . . . . . . . . . . . . . . . . . 3 . . Flight 10 | . . . . . . . . . . . . . . . . . . . . 9 1 Utility 133 | 2 5 5 1 13 7 8 1 4 15 20 1 3 3 24 2 4 2 1 3 8 1 Device 56 | 1 1 3 . 5 1 2 . 1 9 10 . 1 1 13 1 2 . . 2 3 . Storage 6 | 1 1 . . 1 . . . 2 . . . . . . . . . . . 1 . Processor 11 | . . . . . 3 . . . . 3 . . 1 1 . . . 1 1 . 1 Hackware . | . . . . . . . . . . . . . . . . . . . . . . Protection 60 | . 3 2 1 7 3 6 1 1 6 7 1 2 1 10 1 2 2 . . 4 . Artifact . | . . . . . . . . . . . . . . . . . . . . . . Weapon 103 | 2 5 8 2 5 4 8 2 1 17 9 5 . 4 13 . 1 8 2 3 4 . Energy Gun 24 | 2 . . . 1 . . . 1 2 2 2 . . 3 . 1 6 2 1 1 . Energy Cannon 6 | . . . . 2 . . . . . . . . . 1 . . . . 1 2 . Ballistic Gun 38 | . 5 6 . 1 4 5 1 . 6 . 2 . 1 6 . . . . . 1 . Ballistic Cannon 1 | . . . . . . . . . . . . . . . . . 1 . . . . Launcher 14 | . . 2 1 1 . . . . 2 4 . . 1 1 . . 1 . 1 . . Special Weapon 2 | . . . 1 . . . . . . . . . . 1 . . . . . . . Impact Weapon 10 | . . . . . . 3 1 . 5 1 . . . . . . . . . . . Slashing Weapon 6 | . . . . . . . . . . 2 1 . 2 1 . . . . . . . Piercing Weapon . | . . . . . . . . . . . . . . . . . . . . . . Special Melee Weapon 2 | . . . . . . . . . 2 . . . . . . . . . . . . Unidentified Prototypes 11 | . 1 . . . . 1 . . . . 3 . 1 1 . 1 2 . . 1 . Corrupted Parts 2 | . . . . . . . . . . . . . . . . . . . . 2 . System Corruption 10 | . . . . . . . . . . . . . . . . . . . . 10 . Parts Lost 87 | . 1 2 4 5 6 10 . . 6 2 . 1 3 10 3 2 4 10 8 8 2 Power 10 | . . . . . . 1 . . 1 . . . . 2 1 . 1 2 1 1 . Propulsion 16 | . 1 2 2 . . 4 . . . . . . . 1 . . . 3 1 2 . Utility 33 | . . . 1 4 3 2 . . 2 2 . 1 2 2 . 2 2 3 2 3 2 Weapon 28 | . . . 1 1 3 3 . . 3 . . . 1 5 2 . 1 2 4 2 . Highest Loss Streak 5 | . 1 1 3 2 3 4 . . 2 1 . 1 2 3 3 2 2 5 5 3 2 To Critical Strikes 1 | . . . . . . . . . . 1 . . . . . . . . . . . Average Slot Usage (%) 84 | . 99 99 99 95 99 95 91 79 87 85 83 86 87 84 76 80 84 66 61 59 53 Engine 5 | . 14 14 14 9 . 2 7 5 8 5 5 1 . . . . 3 . . . . Core 2 | . . . . . 6 4 . . 1 5 5 5 5 4 4 4 5 4 . . . Treads 12 | . 27 23 13 . . 1 14 21 17 17 12 11 11 6 . . 1 7 . . . Leg 3 | . . . . 17 9 8 15 8 . . . . . . . . . . . . . Wheel 5 | . . 4 14 6 20 15 . . 4 5 5 5 5 8 14 14 14 5 1 2 . Device 14 | . 6 9 5 15 13 9 7 10 21 15 12 10 11 25 22 23 24 18 17 19 14 Storage 5 | . 14 14 14 9 7 7 7 7 5 5 5 5 5 4 . . . . . 1 . Processor 2 | . . . . . 8 13 7 . . . . . 4 4 . . . 2 8 6 5 Protection 11 | . 7 4 7 18 15 13 15 12 6 9 16 22 16 7 14 14 16 11 8 4 4 Energy Gun 3 | . . . . 7 2 . . 2 8 4 14 17 11 5 . 2 6 6 5 2 . Ballistic Gun 7 | . 27 25 21 3 10 11 7 2 3 8 1 . 1 3 10 9 4 . . 1 . Impact Weapon 1 | . . . . . . 2 6 4 2 . . . . . . . . . . . . Slashing Weapon 1 | . . . . . . . . . . 2 . . 2 4 4 4 5 5 3 . . Peak Build Rating 141 | 8 12 13 15 36 43 41 44 58 91 96 111 119 122 128 131 128 135 125 129 136 141 Average Rating 68 | 5 10 11 13 28 39 36 43 44 77 88 108 115 116 120 121 123 123 90 105 104 128 On Entrance 70 | . 8 12 12 15 35 34 41 40 56 88 94 111 119 120 128 123 120 125 70 85 111 Naked Turns . | . . . . . . . . . . . . . . . . . . . . . . Heaviest Build 119 | 14 38 40 42 55 54 48 57 78 97 111 113 119 119 115 84 74 86 75 68 97 53 Greatest Support 108 | 40 40 40 40 51 68 36 30 91 91 80 107 107 20 108 56 56 56 54 75 52 62 Greatest Overweight (x) 7 | . 1 3 1 5 4 3 1 1 4 5 5 5 5 6 1 4 4 2 7 3 . Average Overweight (x) 1 | . . 1 . 1 . 1 1 . 3 4 2 1 5 3 . 1 1 1 . . . Largest Inventory Capacity 20 | 8 15 15 15 15 15 15 15 20 20 20 20 20 20 20 5 5 5 5 5 5 5 Average Capacity 14 | 7 10 15 15 15 15 15 15 15 20 20 20 20 20 19 5 5 5 5 5 5 5 Most Carried 20 | 8 15 15 15 15 15 15 15 15 20 20 20 20 20 20 5 5 5 5 5 5 3 Average Carried 13 | 5 9 14 13 14 14 14 14 13 16 19 19 19 19 17 4 4 4 5 4 3 3 Final Capacity 20 | 8 15 15 15 15 15 15 15 20 20 20 20 20 20 5 5 5 5 5 5 5 5 Final Carried 20 | 8 15 15 14 15 15 15 15 13 18 19 20 20 20 4 5 4 5 5 3 5 3 Class Distribution -------------------- 22% | Mutant 17% | Commander-Mutant 16% | Scavenger-Mutant 15% | Commander-Scrapper 15% | Scavenger-Scrapper 8% | Scavenger-Tank Dominant Class ---------------- Mutant | -10/Materials Mutant | -10/Mines Mutant | -10/Subcaves Mutant | -8/Materials Scavenger-Mutant | -7/Factory Scavenger-Mutant | -7/Storage Scavenger-Mutant | -7/Recycling Commander-Mutant | -7/Scraptown Commander-Scrapper | -5/Factory Scavenger-Scrapper | -5/Extension Scavenger-Tank | -5/Cetus Scavenger-Tank | -5/Archives Scavenger-Mutant | -5/Hub_04(d) Scavenger-Mutant | -4/Factory Scavenger-Scrapper | -4/Upper Caves Scavenger-Scrapper | -4/Upper Caves Scavenger-Tank | -4/Warlord Scavenger-Mutant | -3/Proximity Caves Infiltrator-Mutant | -3/Research Mutant | -2/Research Sprinter | -1/Access Resources | -11 -10 -10 -10 -8 -7 -7 -7 -7 -5 -5 -5 -5 -5 -4 -4 -4 -4 -3 -3 -2 -1 ----------- Run | Yrd Mat Min Sub Mat Fac Sto Rec Scr Fac Ext Cet Arc Hub Fac Upp Upp War Pro Res Res Acc Matter Collected 6755 | 270 334 294 155 383 319 811 171 87 738 854 107 30 89 600 403 104 368 241 132 265 . Remotely . | . . . . . . . . . . . . . . . . . . . . . . Salvage Created 11012 | 140 313 236 149 661 319 964 239 . 1152 1895 73 312 690 1672 394 260 679 275 152 437 . Parts 449 | 8 27 19 15 37 24 38 2 . 50 58 3 10 23 74 10 10 14 5 6 16 . Haulers Intercepted 6 | . 1 . . . . 3 . . . . . . 2 . . . . . . . . Recyclers Shooed 4 | . 1 . . . . 1 . . 1 . . . . 1 . . . . . . . Parts Field Recycled . | . . . . . . . . . . . . . . . . . . . . . . Retrieved Matter . | . . . . . . . . . . . . . . . . . . . . . . Parts Self-Destructed 31 | . . . 6 . . . . . . . . . . . 13 9 . 3 . . . Prevented 5 | . . . . . . . . . . . . . . . 4 1 . . . . . Kills | -11 -10 -10 -10 -8 -7 -7 -7 -7 -5 -5 -5 -5 -5 -4 -4 -4 -4 -3 -3 -2 -1 ------- Run | Yrd Mat Min Sub Mat Fac Sto Rec Scr Fac Ext Cet Arc Hub Fac Upp Upp War Pro Res Res Acc Combat Hostiles Destroyed 201 | . 10 10 4 15 9 10 1 . 20 30 1 3 6 27 5 4 22 9 5 10 . Melee 19 | . . . . . . . . . . 1 1 . 1 10 3 . 1 1 1 . . Guns 109 | . 10 5 2 6 9 10 . . 13 14 . 2 5 7 . 4 10 1 4 7 . Cannons 8 | . . . . 5 . . . . . . . . . . 1 . . . . 2 . AOE 56 | . . 5 2 2 . . . . 5 15 . . . 9 1 . 10 7 . . . Classes Destroyed 25 | 2 5 1 1 1 . 2 . . 3 4 . . . . 1 . 5 . . . . Worker 4 | . 1 . . . . . . . . . . . 2 . . . . . . 1 . Builder 5 | . . . . . . . . . 2 1 . . . 2 . . . . . . . Tunneler 4 | 2 . 1 . . . . . . 1 . . . . . . . . . . . . Hauler 6 | . 1 . . . . 3 . . . . . . 2 . . . . . . . . Recycler 9 | 1 . . . . . 2 . . 2 3 . . . 1 . . . . . . . Minesweeper 1 | . . . . . . . . . . . . . . . 1 . . . . . . Mechanic 5 | . . . . . . . . . 2 1 . . . 1 . . 1 . . . . Operator 3 | . . . . . . 2 . . . . . 1 . . . . . . . . . Watcher 2 | . 1 . . . . . . . . 1 . . . . . . . . . . . Swarmer 42 | . 6 6 . 3 4 . . . 9 . . . . 1 1 . . . 3 9 . Saboteur 2 | . . . . . . . . . . 1 . . . 1 . . . . . . . Grunt 75 | . 4 2 . 7 2 5 . . 4 19 . . . 10 2 2 7 9 2 . . Brawler 7 | . . . . . . . . . . 1 . . . . 1 . 5 . . . . Duelist 3 | . . . . . . . . . . 1 . . . . . . 2 . . . . Protector 3 | . . . . . . . . . 1 . . . . . . . 2 . . . . Sentry 27 | . . 2 . 4 . 4 1 . . 3 . 3 3 6 1 . . . . . . Demolisher 1 | . . . . . . . . . . . . . . . . . 1 . . . . Specialist 2 | . . . . . . . . . . 1 . . . . . . 1 . . . . Hunter 15 | . . . . 1 3 1 . . 1 4 . . 2 2 . . . . . 1 . Programmer 16 | . . . . . . 1 . . 6 . . . . 7 . 2 . . . . . Behemoth 1 | . . . . . . . . . . . . . . . . . 1 . . . . Cetus Guard 1 | . . . . . . . . . . . 1 . . . . . . . . . . Lightning 1 | . . . . . . . . . . . . . 1 . . . . . . . . Striker 1 | . . . . . . . . . . . . . . . . . 1 . . . . Executioner 2 | . . . . . . . . . . . . . . . . . 2 . . . . Subdweller 4 | . . . 4 . . . . . . . . . . . . . . . . . . Decomposer 1 | . . . . . . . . . . . . . . . . 1 . . . . . Packrat 1 | . . . . . . . . . . . . . . . 1 . . . . . . Thug 1 | . . . . . . . . . . . . . . . . . 1 . . . . Mutant 1 | . . . . . . . . . . . . . . . . . 1 . . . . Best Kill Streak 12 | 3 5 4 2 3 3 3 1 . 5 8 1 3 2 7 2 1 12 4 3 5 . Combat Bots Only 12 | . 5 3 2 3 3 3 1 . 5 8 1 3 2 5 2 1 12 4 3 5 . Max Kills in Single Turn 4 | 1 1 4 1 2 1 1 1 . 2 3 1 1 2 3 1 1 3 3 1 1 . Gunslinging 1 | . . . . . . . . . . 1 . . . . . . 1 . . . . Exploded 3 | . . 3 1 2 . . . . 2 3 . . . 2 1 . 2 3 . . . Melee 1 | . . . . . . . . . . 1 1 . 1 1 1 . 1 1 1 . . Uniques/NPCs Destroyed . | . . . . . . . . . . . . . . . . . . . . . . Combat | -11 -10 -10 -10 -8 -7 -7 -7 -7 -5 -5 -5 -5 -5 -4 -4 -4 -4 -3 -3 -2 -1 -------- Run | Yrd Mat Min Sub Mat Fac Sto Rec Scr Fac Ext Cet Arc Hub Fac Upp Upp War Pro Res Res Acc Hostile Shots Fired 1942 | . 79 43 19 84 144 306 27 . 108 90 5 33 94 267 51 81 75 124 94 175 43 Missed 610 | . 16 8 4 28 44 110 9 . 27 27 1 12 25 72 8 29 23 40 32 67 28 Damage Taken 24300 | . 568 501 623 834 1533 1945 155 . 1815 1417 125 509 1598 3121 947 943 1725 1762 1304 2517 358 Core 2476 | . 62 79 43 159 239 126 36 . 218 54 . 47 194 225 87 26 177 205 294 181 24 Absorbed by Shields 286 | . . . . . . . . . 286 . . . . . . . . . . . . Ignored by Resistances 932 | . . . . . . . . . . 38 . 45 95 691 . . 63 . . . . Regen/Repaired (Parts) 1797 | . . . . . . . . 80 213 340 . . . 461 10 10 683 . . . . Core Remaining (%) 65 | 100 . . 26 71 . . . 42 . . . . 48 . . . . 37 77 87 98 Volleys Fired 648 | 4 41 23 22 50 55 51 5 . 59 56 4 22 35 69 9 24 32 23 14 48 2 Largest 4 | 2 2 2 2 2 2 2 1 . 3 3 3 2 3 3 3 4 3 2 1 2 1 Hottest 320 | 90 46 43 100 119 119 56 28 . 212 164 164 320 260 200 129 152 132 115 60 164 94 Shots Fired 1178 | 8 81 39 38 95 103 101 5 . 140 120 6 43 71 90 22 49 61 38 14 52 2 Gun 1053 | 8 81 35 32 66 101 101 5 . 137 107 6 43 70 73 17 48 50 24 14 35 . Cannon 54 | . . . . 25 2 . . . . . . . . 3 4 1 . . . 17 2 Launcher 66 | . . 4 2 4 . . . . 3 13 . . 1 13 1 . 11 14 . . . Special 5 | . . . 4 . . . . . . . . . . 1 . . . . . . . Kinetic 662 | . 81 35 32 33 93 101 5 . 74 82 3 . 3 40 21 48 11 . . . . Thermal 336 | 8 . . 4 33 8 . . . 63 25 3 43 67 33 . 1 . 13 . 35 . Explosive 66 | . . 4 2 4 . . . . 3 13 . . 1 13 1 . 11 14 . . . Electromagnetic 49 | . . . . 25 2 . . . . . . . . 3 . . . . . 17 2 Entropic 64 | . . . . . . . . . . . . . . . . . 39 11 14 . . Robot Hit Streak 20 | 4 12 19 12 13 6 20 3 . 7 12 2 13 13 7 8 7 7 5 5 9 1 Robot Miss Streak 9 | 1 5 3 1 5 4 5 2 . 7 3 3 2 4 5 5 4 9 4 8 4 1 Penetration Max 1 | . . . . . . 1 . . 1 1 . . . . . 1 1 . . . . Secondary Targets 12 | . 1 1 1 . 1 1 . . 1 2 . . 2 . . . 2 . . . . Max Gunslinging Chain 1 | . 1 1 1 . 1 1 . . 1 1 . . 1 . . . 1 . . . . Shots Hit Robots 839 | 5 56 30 27 59 60 83 7 . 75 87 4 33 53 99 21 27 35 30 16 31 1 Core Hits 535 | 4 21 18 7 25 23 26 2 . 36 90 2 16 21 65 8 8 102 33 12 16 . Critical Kills 4 | . . . 1 . . . . . . 3 . . . . . . . . . . . Critical Parts Destroyed 21 | . 2 . . . . 4 1 . 5 2 . . . 2 . 1 4 . . . . Critical Strikes 57 | . 2 . 1 . . 4 1 . 7 14 1 . . 19 . 1 4 2 1 . . Burn 14 | . . . . . . . . . 2 5 . . . 6 . . . 1 . . . Destroy 17 | . 2 . 1 . . . . . 4 5 1 . . 2 . 1 1 . . . . Smash 6 | . . . . . . 4 1 . 1 . . . . . . . . . . . . Sever 17 | . . . . . . . . . . 4 . . . 11 . . . 1 1 . . Detonate 3 | . . . . . . . . . . . . . . . . . 3 . . . . Melee Attacks 180 | . . . . . . 12 7 . 12 14 1 . 13 72 20 2 1 12 14 . . Impact 32 | . . . . . . 12 7 . 10 3 . . . . . . . . . . . Slashing 146 | . . . . . . . . . . 11 1 . 13 72 20 2 1 12 14 . . Piercing . | . . . . . . . . . . . . . . . . . . . . . . Sneak Attacks 20 | . . . . . . 5 . . 2 6 . . 2 1 3 1 . . . . . Combat Hostiles 3 | . . . . . . . . . . 3 . . . . . . . . . . . Follow-up Attacks . | . . . . . . . . . . . . . . . . . . . . . . Damage Inflicted 35939 | 61 718 735 369 1300 786 1906 252 . 2960 5478 118 1051 2050 5332 1047 904 6583 2403 675 1143 68 Guns 16599 | 61 718 348 205 574 786 1354 57 . 2348 2086 68 1051 1200 1254 143 819 1939 426 528 634 . Cannons 1157 | . . . . 447 . . . . . . . . . 128 77 . . . . 437 68 Explosions 12493 | . . 387 164 279 . . . . 345 2640 . . 274 2008 69 . 4611 1651 . 65 . Melee 5680 | . . . . . . 552 195 . 264 752 50 . 576 1942 758 85 33 326 147 . . Ramming 10 | . . . . . . . . . 3 . . . . . . . . . . 7 . Kinetic 8798 | . 718 348 205 294 714 1354 57 . 1237 1693 43 . 22 743 220 819 331 . . . . Thermal 6165 | 61 . . . 342 72 . . . 1111 393 25 1051 1178 511 . . 572 215 . 634 . Explosive 11369 | . . 387 164 217 . . . . 345 2640 . . . 2008 69 . 3888 1651 . . . Electromagnetic 1570 | . . . . 447 . . . . . . . . 274 128 . . 151 . . 502 68 Impact 1189 | . . . . . . 552 195 . 264 178 . . . . . . . . . . . Slashing 4491 | . . . . . . . . . . 574 50 . 576 1942 758 85 33 326 147 . . Piercing . | . . . . . . . . . . . . . . . . . . . . . . Entropic 2347 | . . . . . . . . . . . . . . . . . 1608 211 528 . . Highest Corruption 14 | . . . . . . 3 3 . 6 3 . . 14 7 7 8 8 5 . 10 . Average Corruption 4 | . . . . . . 2 3 . 3 2 . . 8 4 7 7 6 5 . 9 . Corruption Purged 6 | . . . . . . . . . 3 3 . . . . . . . . . . . Corruption Blocked . | . . . . . . . . . . . . . . . . . . . . . . Effects 156 | . . . . . . 11 9 . 10 37 . . 2 28 28 12 2 12 . 5 . Message Errors 38 | . . . . . . 3 3 . 4 9 . . . 7 7 3 . 2 . . . Matter Fused 33 | . . . . . . 2 3 . 2 9 . . 1 5 4 2 2 2 . 1 . Heat Flow Errors 16 | . . . . . . 2 . . . 4 . . 1 5 4 . . . . . . Energy Discharges 24 | . . . . . . 2 . . 1 5 . . . 4 8 2 . 1 . 1 . Parts Rejected 1 | . . . . . . . . . . . . . . . . 1 . . . . . Parts Fused 1 | . . . . . . . . . . . . . . . . . . 1 . . . Data Loss (minor) 18 | . . . . . . . 1 . . 5 . . . 5 2 2 . 2 . 1 . Data Loss (major) 9 | . . . . . . 1 2 . 1 3 . . . . 1 . . . . 1 . Misfires 8 | . . . . . . . . . 1 1 . . . 2 1 . . 3 . . . Alerts 3 | . . . . . . . . . 1 . . . . . 1 . . 1 . . . Misdirections 1 | . . . . . . . . . . . . . . . . . . . . 1 . Weapon Failures 4 | . . . . . . 1 . . . 1 . . . . . 2 . . . . . Overload Shots 2 | . . . . . . . . . . . . 2 . . . . . . . . . Overflow Damage 1171 | . . 8 . 6 . 405 123 . 144 91 . . 25 14 143 83 29 55 . 32 13 Projectiles 22 | . . . . . . . . . . . . . . . . . . . . 9 13 Explosions 138 | . . 8 . 6 . . . . 31 12 . . 25 2 . . 29 2 . 23 . Melee 1011 | . . . . . . 405 123 . 113 79 . . . 12 143 83 . 53 . . . Knockbacks 5 | . . . . . . . 1 . 1 2 . . . . 1 . . . . . . Impact 4 | . . . . . . . 1 . 1 2 . . . . . . . . . . . Kinetic 1 | . . . . . . . . . . . . . . . 1 . . . . . . Secondary . | . . . . . . . . . . . . . . . . . . . . . . Self-Inflicted Damage 386 | . . 62 . 6 . . . . 71 66 . . 99 . . . 52 27 . 3 . Shots 13 | . . 3 . 1 . . . . 1 4 . . 1 . . . 2 1 . . . Rammed 2 | . . . . . . . . . 1 . . . . . . . . . . 1 . Targets Rammed 2 | . . . . . . . . . 1 . . . . . . . . . . 1 . Kicked . | . . . . . . . . . . . . . . . . . . . . . . Crushed . | . . . . . . . . . . . . . . . . . . . . . . Highest Temperature 585 | 60 68 83 263 129 20 189 . . 585 320 193 255 272 236 348 52 270 167 28 126 107 Average Temperature 73 | 24 18 28 143 36 6 19 . . 167 98 124 117 164 58 126 22 82 59 15 44 46 Received Heat Transfer 4510 | . 138 192 398 360 135 495 54 . 192 420 . 81 63 639 488 177 162 303 150 36 27 Effects 10 | . . . . . . . . . 7 1 . . . . . . 2 . . . . Shutdowns 4 | . . . . . . . . . 3 1 . . . . . . . . . . . Energy Bleed 4 | . . . . . . . . . 2 . . . . . . . 2 . . . . Damage (minor) 2 | . . . . . . . . . 2 . . . . . . . . . . . . Siege Activations . | . . . . . . . . . . . . . . . . . . . . . . Robots Corrupted 12 | . . . . 2 . 3 3 . 1 1 . . . 1 . . . . . 1 . Combat Hostiles 7 | . . . . 2 . . 3 . . . . . . 1 . . . . . 1 . Parts Fried 25 | . . . . 4 . 4 3 . 3 1 . . 3 1 . . 1 . . 5 . Impact Corruptions 24 | . . . . . . 13 5 . 4 2 . . . . . . . . . . . Robots Melted 3 | . . . . . . . . . 2 . . 1 . . . . . . . . . Combat Hostiles 3 | . . . . . . . . . 2 . . 1 . . . . . . . . . Parts Melted 31 | . . . 1 . 1 1 . . 7 3 . 4 2 6 3 . . 1 . 2 . Heat Transferred 10475 | 161 . . . 753 185 . . . 2001 1200 50 1284 1567 1435 . . 425 600 . 814 . Parts Sabotaged . | . . . . . . . . . . . . . . . . . . . . . . Parts Stolen . | . . . . . . . . . . . . . . . . . . . . . . Parts Stripped . | . . . . . . . . . . . . . . . . . . . . . . Power Chain Reactions 1 | . . . . 1 . . . . . . . . . . . . . . . . . Alert | -11 -10 -10 -10 -8 -7 -7 -7 -7 -5 -5 -5 -5 -5 -4 -4 -4 -4 -3 -3 -2 -1 ------- Run | Yrd Mat Min Sub Mat Fac Sto Rec Scr Fac Ext Cet Arc Hub Fac Upp Upp War Pro Res Res Acc Peak Influence 1703 | 15 313 243 . 339 306 491 217 . 817 1703 1041 512 798 970 . . . . 134 229 471 Initial 953 | . 9 . . . 140 85 176 . . 399 953 375 179 292 . . . . . 75 98 Average 367 | 6 113 108 . 159 199 315 129 . 338 970 943 482 355 460 . . . . 32 97 209 Maximum Alert Level 5 | . 1 1 . 1 1 2 1 . 3 5 3 2 3 3 . . . . . 1 2 Low Security (%) 42 | 100 75 79 . 53 60 19 86 . 43 . . . 12 . . . . . 100 99 53 Level 1 23 | . 24 20 . 46 39 50 13 . 16 1 . 7 75 41 . . . . . . 37 Level 2 17 | . . . . . . 30 . . 30 28 . 92 . 49 . . . . . . 8 Level 3 8 | . . . . . . . . . 9 23 100 . 11 9 . . . . . . . Level 4 6 | . . . . . . . . . . 44 . . . . . . . . . . . Level 5 . | . . . . . . . . . . 1 . . . . . . . . . . . High Security . | . . . . . . . . . . . . . . . . . . . . . . Max Security . | . . . . . . . . . . . . . . . . . . . . . . Squads Dispatched 39 | . 2 . . 2 4 4 . . 5 5 . . 3 8 . . . 1 . 3 2 Investigation 9 | . 1 . . 1 2 . . . 1 2 . . . 1 . . . . . 1 . Extermination 7 | . . . . . 1 1 . . 2 . . . . 2 . . . . . 1 . Reinforcement 15 | . 1 . . 1 1 3 . . 2 1 . . 1 2 . . . . . 1 2 Assault 6 | . . . . . . . . . . 2 . . . 3 . . . 1 . . . Garrison 2 | . . . . . . . . . . . . . 2 . . . . . . . . Intercept . | . . . . . . . . . . . . . . . . . . . . . . Searches Triggered . | . . . . . . . . . . . . . . . . . . . . . . Construction Impeded 3 | . . . . . . 1 . . . 1 . . . . . . . . . 1 . Haulers Reinforced 1 | . . . . . . . . . . . . . 1 . . . . . . . . Active Scanning Responses . | . . . . . . . . . . . . . . . . . . . . . . Cargo Convoy Interrupts 1 | . . . . . . . . . 1 . . . . . . . . . . . . Stealth | -11 -10 -10 -10 -8 -7 -7 -7 -7 -5 -5 -5 -5 -5 -4 -4 -4 -4 -3 -3 -2 -1 --------- Run | Yrd Mat Min Sub Mat Fac Sto Rec Scr Fac Ext Cet Arc Hub Fac Upp Upp War Pro Res Res Acc Distress Signals 29 | . 5 . . 3 . 5 . . 2 2 1 1 . 2 . . . . . 5 3 Communications Jammed 65 | . . . . . . . . . 34 . . . . 6 . . . . 21 4 . Distress Signals 65 | . . . . . . . . . 34 . . . . 6 . . . . 21 4 . Times Spotted 436 | . 36 10 5 22 12 21 1 . 28 50 5 13 10 46 9 11 50 25 24 33 25 Peak Tracking Total 18 | . 8 3 2 4 4 4 1 . 6 6 5 2 4 9 3 5 18 14 16 15 18 Tactical Retreats 42 | . 10 . . 4 2 1 . . 3 3 . . . . 2 5 1 2 3 3 3 Traps | -11 -10 -10 -10 -8 -7 -7 -7 -7 -5 -5 -5 -5 -5 -4 -4 -4 -4 -3 -3 -2 -1 ------- Run | Yrd Mat Min Sub Mat Fac Sto Rec Scr Fac Ext Cet Arc Hub Fac Upp Upp War Pro Res Res Acc Traps Triggered 9 | . 1 . . . 1 4 . . 1 1 . . . . . . . . . 1 . Indirectly . | . . . . . . . . . . . . . . . . . . . . . . Trap Hack Attempts 14 | . . . . . . . . . 14 . . . . . . . . . . . . Triggered . | . . . . . . . . . . . . . . . . . . . . . . Disarmed 1 | . . . . . . . . . 1 . . . . . . . . . . . . Reprogrammed 6 | . . . . . . . . . 6 . . . . . . . . . . . . Reused 8 | . . . . . . . . . 1 3 . . . . 2 . 1 1 . . . Traps Extracted 10 | . . . . . . . . . 6 . . . . . . . 4 . . . . Installed 13 | . . . . . . . . . 1 5 . . . . 3 1 2 1 . . . Triggered 22 | . . . . . . . . . 2 3 . . . . 3 2 11 1 . . . Most Traps Carried 5 | . . . . . . . . . 5 5 . . . . 2 1 2 1 . . . Machines | -11 -10 -10 -10 -8 -7 -7 -7 -7 -5 -5 -5 -5 -5 -4 -4 -4 -4 -3 -3 -2 -1 ---------- Run | Yrd Mat Min Sub Mat Fac Sto Rec Scr Fac Ext Cet Arc Hub Fac Upp Upp War Pro Res Res Acc Machines Disabled 36 | . . 1 1 . . 1 . . 2 5 . 3 9 6 . 1 . . . 6 1 Max in Single Turn 9 | . . 1 1 . . 1 . . 1 1 . . 9 1 . 1 . . . 1 1 Garrison Access 1 | . . . . . . . . . . . . . . . . . . . 1 . . Network Hub 1 | . . . . . . . . . . . . . 1 . . . . . . . . Energy Cycler 1 | . . . . . . . . . . 1 . . . . . . . . . . . Machines Repaired . | . . . . . . . . . . . . . . . . . . . . . . Machines Dismantled . | . . . . . . . . . . . . . . . . . . . . . . Machines Sabotaged . | . . . . . . . . . . . . . . . . . . . . . . Overloaded Fab Kills . | . . . . . . . . . . . . . . . . . . . . . . Hacking | -11 -10 -10 -10 -8 -7 -7 -7 -7 -5 -5 -5 -5 -5 -4 -4 -4 -4 -3 -3 -2 -1 --------- Run | Yrd Mat Min Sub Mat Fac Sto Rec Scr Fac Ext Cet Arc Hub Fac Upp Upp War Pro Res Res Acc Machines Accessed 60 | . 5 . 1 5 4 3 1 5 4 8 1 . 3 5 . 1 6 . 3 2 3 Terminals 37 | . 5 . . 3 4 3 1 . 3 7 1 . 3 2 . . . . 1 1 3 Fabricators 1 | . . . . . . . . . . . . . . 1 . . . . . . . Repair Stations 2 | . . . . . . . . . . 1 . . . 1 . . . . . . . Recycling Units 4 | . . . . 1 . . . . 1 . . . . 1 . . . . . 1 . Scanalyzers 2 | . . . . 1 . . . . . . . . . . . . . . 1 . . Garrison Access 1 | . . . . . . . . . . . . . . . . . . . 1 . . Total Hacks 171 | . 15 . 2 8 11 4 2 39 10 16 1 . 10 15 . 1 20 . 5 6 6 Successful 117 | . 9 . 2 7 3 2 1 39 6 6 . . 6 5 . 1 20 . 3 3 4 Failed 54 | . 6 . . 1 8 2 1 . 4 10 1 . 4 10 . . . . 2 3 2 Catastrophic 19 | . 1 . . . 3 2 . . 2 4 . . 1 4 . . . . 1 1 . Database Lockouts . | . . . . . . . . . . . . . . . . . . . . . . Manual 49 | . 11 . . 3 1 3 2 . 4 8 . . 4 4 . . . . 1 3 5 Terminals 88 | . 15 . . 5 11 4 2 . 8 14 1 . 10 7 . . . . 1 4 6 Fabricators 2 | . . . . . . . . . . . . . . 2 . . . . . . . Repair Stations 5 | . . . . . . . . . . 2 . . . 3 . . . . . . . Recycling Units 8 | . . . . 1 . . . . 2 . . . . 3 . . . . . 2 . Scanalyzers 4 | . . . . 2 . . . . . . . . . . . . . . 2 . . Garrison Access 2 | . . . . . . . . . . . . . . . . . . . 2 . . Terminal Hacks 90 | . 7 . 2 4 2 1 1 39 4 2 . . 3 2 . 1 20 . . 1 1 Record 45 | . . . 1 . . . . 34 . . . . . . . 1 9 . . . . Robot Analysis 6 | . 1 . . . . . . 5 . . . . . . . . . . . . . Prototype ID Bank 10 | . . . . . . . . . . . . . . . . . 10 . . . . Open Door 4 | . . . . . . 1 . . . 1 . . . . . . 1 . . . 1 Branch Access Points 2 | . . . . 1 1 . . . . . . . . . . . . . . . . Emergency Access Points 2 | . . . . . 1 . . . . . . . 1 . . . . . . . . Fabricator Index 1 | . . . . . . . . . . . . . . 1 . . . . . . . Alert Level 2 | . . . . . . . . . 1 . . . 1 . . . . . . . . Unreport Threat 2 | . 1 . . . . . . . . . . . . . . . . . . 1 . Locate Traps 5 | . 3 . . . . . . . 1 . . . . 1 . . . . . . . Reprogram Traps 1 | . . . . . . . . . 1 . . . . . . . . . . . . Hauler Manifests 1 | . . . . 1 . . . . . . . . . . . . . . . . . Registered Components 1 | . . . . . . . . . 1 . . . . . . . . . . . . Zone Layout 7 | . 2 . . 2 . . 1 . . 1 . . 1 . . . . . . . . Derelict Proto ID Bank 1 | . . . 1 . . . . . . . . . . . . . . . . . . Fabricator Hacks . | . . . . . . . . . . . . . . . . . . . . . . Repair Station Hacks 4 | . . . . . . . . . . 2 . . . 2 . . . . . . . Scan Component 2 | . . . . . . . . . . 1 . . . 1 . . . . . . . Repair 2 | . . . . . . . . . . 1 . . . 1 . . . . . . . Recycling Unit Hacks . | . . . . . . . . . . . . . . . . . . . . . . Scanalyzer 4 | . . . . 2 . . . . . . . . . . . . . . 2 . . Insert Component 2 | . . . . 1 . . . . . . . . . . . . . . 1 . . Analyze 2 | . . . . 1 . . . . . . . . . . . . . . 1 . . Garrison Access Hacks 1 | . . . . . . . . . . . . . . . . . . . 1 . . Seal Access 1 | . . . . . . . . . . . . . . . . . . . 1 . . Unauthorized Hacks 18 | . 2 . . 1 1 1 . . 2 2 . . 3 1 . . . . . 2 3 Terminals 14 | . 2 . . . 1 1 . . 1 2 . . 3 . . . . . . 1 3 Track 3 | . 1 . . . . . . . . 1 . . . . . . . . . . 1 Botnet 9 | . 1 . . . 1 1 . . 1 1 . . 2 . . . . . . 1 1 Operators 2 | . . . . . . . . . . . . . 1 . . . . . . . 1 Fabricators . | . . . . . . . . . . . . . . . . . . . . . . Repair Stations 3 | . . . . . . . . . 1 . . . . 1 . . . . . 1 . Recycling Units 1 | . . . . 1 . . . . . . . . . . . . . . . . . Tunnel 1 | . . . . 1 . . . . . . . . . . . . . . . . . Scrapoids 3 | . . . . . . . . . 1 . . . . 1 . . . . . 1 . Scanalyzers . | . . . . . . . . . . . . . . . . . . . . . . Garrison Access . | . . . . . . . . . . . . . . . . . . . . . . Data Cores Recovered . | . . . . . . . . . . . . . . . . . . . . . . Used . | . . . . . . . . . . . . . . . . . . . . . . Hacking Detections 38 | . 5 . . 2 4 3 1 . 4 7 . . 3 4 . . . . 1 2 2 Full Trace Events 4 | . . . . . 2 . . . . 2 . . . . . . . . . . . Feedback Events . | . . . . . . . . . . . . . . . . . . . . . . Feedback Blocked . | . . . . . . . . . . . . . . . . . . . . . . Robot Schematics Acquired . | . . . . . . . . . . . . . . . . . . . . . . Robots Built . | . . . . . . . . . . . . . . . . . . . . . . Authchips . | . . . . . . . . . . . . . . . . . . . . . . Time . | . . . . . . . . . . . . . . . . . . . . . . Total Robot Build Rating . | . . . . . . . . . . . . . . . . . . . . . . Part Schematics Acquired 2 | . . . . 1 . . . . . . . . . . . . . . 1 . . Parts Built . | . . . . . . . . . . . . . . . . . . . . . . Authchips . | . . . . . . . . . . . . . . . . . . . . . . Time . | . . . . . . . . . . . . . . . . . . . . . . Total Part Build Rating . | . . . . . . . . . . . . . . . . . . . . . . Parts Repaired 2 | . . . . . . . . . . 1 . . . 1 . . . . . . . Time 76 | . . . . . . . . . . 22 . . . 54 . . . . . . . Parts Recycled . | . . . . . . . . . . . . . . . . . . . . . . Recycled Matter . | . . . . . . . . . . . . . . . . . . . . . . Retrieved Matter . | . . . . . . . . . . . . . . . . . . . . . . Retrieved Components . | . . . . . . . . . . . . . . . . . . . . . . Parts Scanalyzed 2 | . . . . 1 . . . . . . . . . . . . . . 1 . . Part Schematics Acquired 2 | . . . . 1 . . . . . . . . . . . . . . 1 . . Parts Damaged . | . . . . . . . . . . . . . . . . . . . . . . Bothacking | -11 -10 -10 -10 -8 -7 -7 -7 -7 -5 -5 -5 -5 -5 -4 -4 -4 -4 -3 -3 -2 -1 ------------ Run | Yrd Mat Min Sub Mat Fac Sto Rec Scr Fac Ext Cet Arc Hub Fac Upp Upp War Pro Res Res Acc Used RIF Installer . | . . . . . . . . . . . . . . . . . . . . . . Robots Hacked 1 | . . . . . . . . . 1 . . . . . . . . . . . . Non-combat . | . . . . . . . . . . . . . . . . . . . . . . Combat . | . . . . . . . . . . . . . . . . . . . . . . Robot Hacks Applied . | . . . . . . . . . . . . . . . . . . . . . . Manual 1 | . . . . . . . . . 1 . . . . . . . . . . . . Relay Couplers Released 3 | . . . . . . 3 . . . . . . . . . . . . . . . Programmers 3 | . . . . . . 3 . . . . . . . . . . . . . . . Fabnet Peak Effective % . | . . . . . . . . . . . . . . . . . . . . . . Robots Rewired 29 | . . . . . . . 8 . . 16 . . . . . . 5 . . . . Allies Hacked 2 | . . . . . . . . . . . . . . . . . . . . 2 . Hacks Repelled . | . . . . . . . . . . . . . . . . . . . . . . Allies | -11 -10 -10 -10 -8 -7 -7 -7 -7 -5 -5 -5 -5 -5 -4 -4 -4 -4 -3 -3 -2 -1 -------- Run | Yrd Mat Min Sub Mat Fac Sto Rec Scr Fac Ext Cet Arc Hub Fac Upp Upp War Pro Res Res Acc Total Allies 61 | . . 3 . . . 10 8 . 5 18 . . . 6 . . 5 . . 6 . Largest Group 13 | . . 3 3 . . 10 8 8 13 12 11 3 1 5 1 . 5 . . 5 . Highest-Rated Group 383 | . . 40 40 . . 173 147 148 383 374 346 96 31 235 79 . 253 . . 320 . Highest-Rated Ally 79 | . . 16 16 . . 29 40 40 50 39 39 34 31 79 79 . 56 . . 64 . Total Orders 53 | . . . . . . 10 7 8 12 2 . . 1 12 . . . . . 1 . STAY 6 | . . . . . . . . 1 3 1 . . 1 . . . . . . . . ROAM 2 | . . . . . . 1 . . . . . . . 1 . . . . . . . FOLLOW 11 | . . . . . . 3 1 2 4 1 . . . . . . . . . . . DROP 6 | . . . . . . . 3 1 2 . . . . . . . . . . . . PICKUP 2 | . . . . . . . . 1 1 . . . . . . . . . . . . COLLECT 8 | . . . . . . . 3 3 2 . . . . . . . . . . . . EXPLORE 15 | . . . . . . 6 . . . . . . . 8 . . . . . 1 . RETURN 3 | . . . . . . . . . . . . . . 3 . . . . . . . Ally Attacks 483 | . . . 12 . . 95 . . 61 133 30 17 15 39 12 . 56 . . 13 . Total Damage 11066 | . . . 96 . . 1280 . . 1466 2069 536 285 251 1480 701 . 2566 . . 336 . Kills 62 | . . . 1 . . 12 . . 10 16 4 1 1 9 . . 7 . . 1 . Allies Corrupted 1 | . . . . . . 1 . . . . . . . . . . . . . . . Allies Melted 5 | . . . . . . . . . 1 2 . . . 1 . . 1 . . . . Intel | -11 -10 -10 -10 -8 -7 -7 -7 -7 -5 -5 -5 -5 -5 -4 -4 -4 -4 -3 -3 -2 -1 ------- Run | Yrd Mat Min Sub Mat Fac Sto Rec Scr Fac Ext Cet Arc Hub Fac Upp Upp War Pro Res Res Acc Robot Analysis Total 6 | . 1 . . . . . . 5 . . . . . . . . . . . . . Derelict Logs Recovered 7 | . . 1 1 . . . . 2 . . . . . . . 3 . . . . . Drone Launches 37 | . . . . . . 18 . . . . . . . 15 . . . . . 4 . Drone Recoveries 17 | . . . . . . 4 . . . . . . . 11 . . . . . 2 . Exploration | -11 -10 -10 -10 -8 -7 -7 -7 -7 -5 -5 -5 -5 -5 -4 -4 -4 -4 -3 -3 -2 -1 ------------- Run | Yrd Mat Min Sub Mat Fac Sto Rec Scr Fac Ext Cet Arc Hub Fac Upp Upp War Pro Res Res Acc Turns Passed 19746 | 127 1220 764 605 1048 545 686 626 4352 1508 1836 296 242 401 1361 990 373 1074 500 479 598 115 Spaces Moved 12144 | 62 641 435 397 482 314 336 235 2595 851 1149 130 70 196 608 927 299 776 272 358 689 322 Core 23 | 3 . . . . . . . . . . . . . . . . . . 20 . . Treads 2725 | 59 641 281 144 . . . . 1101 17 98 94 67 . 83 . . . 122 18 . . Legs 2106 | . . . . 290 33 54 235 1494 . . . . . . . . . . . . . Wheels 6108 | . . 154 253 192 281 282 . . 834 1051 36 3 196 525 927 299 776 150 18 131 . Hover 533 | . . . . . . . . . . . . . . . . . . . 302 231 . Flight 649 | . . . . . . . . . . . . . . . . . . . . 327 322 Fastest Speed 27 | 50 160 125 107 107 105 105 190 120 110 110 120 120 120 89 76 89 89 80 56 28 27 Average Speed 130 | 154 161 148 126 171 107 122 190 160 133 123 210 239 120 145 88 100 115 148 97 59 27 Slowest Speed 400 | 160 240 240 160 270 150 190 190 190 150 216 245 245 120 240 89 170 170 250 400 170 27 Overloaded Moves . | . . . . . . . . . . . . . . . . . . . . . . Propulsion Burnouts . | . . . . . . . . . . . . . . . . . . . . . . Robots Hopped 17 | . . . . . . . . . . . . . . . . . . . . 13 4 Cave-ins Triggered . | . . . . . . . . . . . . . . . . . . . . . . Exploration Rate (%) 48 | 4 78 83 21 44 10 88 49 90 17 88 61 74 21 33 86 38 85 45 13 19 14 Regions Visited 21 Branch Regions 13 Pre-discovered Areas 8 | . . 1 . 1 . 1 . 4 . . . . . . . 1 . . . . . Known Exits Taken 9 | . . . . . 1 . . 1 1 1 . . 1 . . . 1 1 1 1 . Unknown Exits Taken 12 | 1 1 1 1 1 . 1 1 . . . 1 1 . 1 1 1 . . . . . Scrap Searched 7 | . . 1 . . . . . 3 . . . . . . 1 1 . 1 . . . Spaces Dug 139 | . . 17 7 21 . 1 3 . 37 21 . . 6 12 4 . . 2 8 . . Terrain Destroyed 997 | . . 35 17 42 . 2 3 . 90 175 3 2 197 96 15 58 96 158 8 . . Melee 35 | . . . . . . 1 3 . 6 . . . 1 10 4 . . 2 8 . . Projectile 260 | . . . . . . 1 . . 53 64 3 2 25 19 8 58 20 7 . . . AOE 702 | . . 35 17 42 . . . . 31 111 . . 171 67 3 . 76 149 . . . Terrain Rammed . | . . . . . . . . . . . . . . . . . . . . . . Walls Destroyed . | . . . . . . . . . . . . . . . . . . . . . . Machines Disabled . | . . . . . . . . . . . . . . . . . . . . . . Actions | -11 -10 -10 -10 -8 -7 -7 -7 -7 -5 -5 -5 -5 -5 -4 -4 -4 -4 -3 -3 -2 -1 --------- Run | Yrd Mat Min Sub Mat Fac Sto Rec Scr Fac Ext Cet Arc Hub Fac Upp Upp War Pro Res Res Acc Total 14849 | 83 755 518 456 616 427 500 399 2797 1144 1496 150 103 272 913 1059 345 905 314 449 806 342 Wait 926 | . 26 35 21 28 21 52 70 146 133 91 1 4 14 76 94 9 2 4 42 37 20 Move 12089 | 61 640 434 396 481 313 335 234 2594 850 1148 129 69 195 607 926 298 775 271 357 663 313 Hop 16 | . . . . . . . . . . . . . . . . . . . . 12 4 Pick Up 160 | 10 18 3 7 16 10 6 3 19 18 13 1 3 4 14 3 1 2 . 4 5 . Fast Attach 131 | 6 5 2 . 7 6 7 2 7 10 7 4 . 1 17 . 4 12 2 8 22 2 Attach 67 | 1 1 1 4 6 8 7 . . 9 4 1 3 2 10 1 2 . . 4 2 1 Detach 15 | . . 1 . 1 1 2 . 1 1 3 2 . . 3 . . . . . . . Swap 118 | . 6 13 2 10 3 11 2 1 21 19 2 1 5 17 1 . 2 1 1 . . Drop 207 | 1 18 6 4 17 10 10 7 29 15 16 5 1 3 27 2 4 11 . 5 16 . Fire 648 | 4 41 23 22 50 55 51 5 . 59 56 4 22 35 69 9 24 32 23 14 48 2 Melee 180 | . . . . . . 12 7 . 12 14 1 . 13 72 20 2 1 12 14 . . Ram 2 | . . . . . . . . . 1 . . . . . . . . . . 1 . Kick . | . . . . . . . . . . . . . . . . . . . . . . Crush . | . . . . . . . . . . . . . . . . . . . . . . Escape Stasis 2 | . . . . . . . . . . 2 . . . . . . . . . . . Rewire 253 | . . . . . . . 69 . . 118 . . . . . . 66 . . . . Trap 27 | . . . . . . . . . 15 5 . . . . 3 1 2 1 . . . Miscellaneous 8 | . . . . . . 7 . . . . . . . 1 . . . . . . . Route ------- -11/Scrapyard -10/Materials (discovered 4 exits: [*Mat x2] / [*Min x2]) -10/Mines (discovered 3 exits: [*Mat x2] / *Sub) -10/Subcaves -8/Materials -7/Factory (discovered 4 exits: *Sto x2 / Low x2) -7/Storage (discovered 2 exits: [*Fac] / *Rec) -7/Recycling -7/Scraptown (discovered 2 exits: *Fac x2) -5/Factory (discovered 4 exits: Fac x2 / Upp / *Ext) -5/Extension (discovered 3 exits: *Fac x2 / *Cet) -5/Cetus -5/Archives (discovered 2 exits: *Hub x2) -5/Hub_04(d) (discovered 2 exits: *Fac x2) -4/Factory (discovered 2 exits: [*Upp x2]) -4/Upper Caves -4/Upper Caves -4/Warlord -3/Proximity Caves -3/Research (discovered 5 exits: *Res x3 / Arm / Qua) -2/Research -1/Access To Epsilon Eridani History --------- Turn | Location | Event 36 | -11/Scrapyard | Discovered new exit (range 15) 128 | -11/Scrapyard | Entered Materials 300 | -10/Materials | Build established: Mutant 333 | -10/Materials | Discovered new exit (range 14) 736 | -10/Materials | Discovered new exit (range 16) 1063 | -10/Materials | Discovered new exit (range 6) 1093 | -10/Materials | Discovered new exit (range 13) 1348 | -10/Materials | Entered Mines 1478 | -10/Mines | Received a Rocket Launcher from a helpful Derelict 1547 | -10/Mines | Discovered new exit (range 8) 1571 | -10/Mines | Discovered new exit (range 14) 1742 | -10/Mines | Core integrity fell below 50% 1871 | -10/Mines | Assisted by bots powering up and referring to "LRC-V3" 2086 | -10/Mines | Discovered new exit (range 15) 2112 | -10/Mines | Entered Subcaves 2112 | -10/Subcaves | Accompanied by 3 allies 2399 | -10/Subcaves | Lost 3 allies 2429 | -10/Subcaves | Lost 3 parts (2n1u) 2485 | -10/Subcaves | Discovered new exit (range 10) 2582 | -10/Subcaves | Visited 4L-MR0's lab 2597 | -10/Subcaves | Found Gun Armor 2677 | -10/Subcaves | Learned Materials trap positions 2717 | -10/Subcaves | Entered Materials 2717 | -8/Materials | Evolved 4 slots: Propulsion x1, Utility x3 2718 | -8/Materials | Loaded intel: 12 trap records 3620 | -8/Materials | Discovered new exit (range 10) 3765 | -8/Materials | Entered Factory 3765 | -7/Factory | Evolved 2 slots: Propulsion x1, Utility x1 4197 | -7/Factory | Lost 3 parts (3u) 4273 | -7/Factory | Build established: Scavenger-Mutant 4283 | -7/Factory | Identified exit to Storage 4283 | -7/Factory | Identified exit to Lower Caves 4310 | -7/Factory | Entered Storage 4407 | -7/Storage | Assisted by bots powering up and referring to "LRC-V3" 4512 | -7/Storage | Learned location of Armory (-3) 4516 | -7/Storage | Lost 3 allies 4645 | -7/Storage | Lost 10 allies 4687 | -7/Storage | Discovered new exit (range 27) 4730 | -7/Storage | P-70 Sage assimilated allied Soldier 4a 4858 | -7/Storage | Core integrity fell below 50% 4894 | -7/Storage | Lost 4 parts (1p1n1u1w) 4988 | -7/Storage | Used back door to open Recycling access 4988 | -7/Storage | Discovered new exit (range 5) 4996 | -7/Storage | Entered Recycling 5560 | -7/Recycling | Scanned before Scraplab entrance 5587 | -7/Recycling | Entered Scraplab 5602 | -7/Recycling | Discovered new exit (range 2) 5622 | -7/Recycling | Entered Scraptown 5622 | -7/Scraptown | Accompanied by 8 allies 5622 | -7/Scraptown | System corruption cleaned by C-Scrubber 5640 | -7/Scraptown | Build established: Commander-Mutant 6126 | -7/Scraptown | Visited UFD Registry 6153 | -7/Scraptown | Visited Cave Peace 6191 | -7/Scraptown | Heard Great Nut preacher, LISTEN AND RECITE! 6219 | -7/Scraptown | Visited Junk Repository 6273 | -7/Scraptown | Visited SPCMW 6345 | -7/Scraptown | Scanned Subdweller tech in exchange for log data 6351 | -7/Scraptown | Learned Research stockpile data 6353 | -7/Scraptown | Learned 12 Research zone layouts 6564 | -7/Scraptown | Visited IN-MT5's Study 6727 | -7/Scraptown | Visited Symbiants 6765 | -7/Scraptown | Visited Cyclists 6850 | -7/Scraptown | Discovered new exit (range 13) 7001 | -7/Scraptown | Registered with UFD as "Macerigger" 7101 | -7/Scraptown | Visited Modified Component R&D 7156 | -7/Scraptown | Visited Curators Association 7223 | -7/Scraptown | Visited Botcube Research 7238 | -7/Scraptown | Found Botcube 7273 | -7/Scraptown | Visited Cartography Club 7572 | -7/Scraptown | Learned location of Lower Caves (-6) 7572 | -7/Scraptown | Learned location of Proximity Caves (-6) 7572 | -7/Scraptown | Learned location of Cetus (-5) 7572 | -7/Scraptown | Learned location of Testing (-2) 7572 | -7/Scraptown | Learned 16 Materials zone layouts 7572 | -7/Scraptown | Learned 24 Factory zone layouts 7572 | -7/Scraptown | Learned 4 Storage zone layouts 7572 | -7/Scraptown | Learned 4 Recycling zone layouts 7572 | -7/Scraptown | Learned 16 Lower Caves zone layouts 7572 | -7/Scraptown | Learned 20 Lower Caves zone layouts 7572 | -7/Scraptown | Learned 16 Proximity Caves zone layouts 7572 | -7/Scraptown | Learned 20 Proximity Caves zone layouts 7572 | -7/Scraptown | Learned 4 Armory zone layouts 7572 | -7/Scraptown | Learned location of 1 exit from Research 7572 | -7/Scraptown | Learned location of 2 exits from Research 7572 | -7/Scraptown | Identified exit to Factory 7613 | -7/Scraptown | Found Deep Structural Scanner 7680 | -7/Scraptown | Visited Abandonware Association 7698 | -7/Scraptown | Learned abandonware demo "POISON.EXE" 7725 | -7/Scraptown | Visited Analyses Database 7750 | -7/Scraptown | Visited Scrapoid Pod Storage 7757 | -7/Scraptown | Found Scrapoid Pod 7776 | -7/Scraptown | Visited Chapter 10 7812 | -7/Scraptown | Visited Research Penetration Think Tank 7838 | -7/Scraptown | Visited Scrapoid Research Area 8061 | -7/Scraptown | Found Scrap Suit 8532 | -7/Scraptown | Build established: Commander-Scrapper 9974 | -7/Scraptown | Entered Factory 9974 | -5/Factory | Accompanied by 8 allies 9974 | -5/Factory | Evolved 4 slots: Power x1, Propulsion x1, Utility x1, Weapon x1 9975 | -5/Factory | Identified exit to Factory 9976 | -5/Factory | Identified exit to Extension 9976 | -5/Factory | Identified exit to Upper Caves 10585 | -5/Factory | Scrapoid reinforcements arrived 10851 | -5/Factory | Cargo convoy interrupted 10881 | -5/Factory | Lost 6 allies 10912 | -5/Factory | P-70 Sage assimilated allied Transporter 4b 10937 | -5/Factory | Lost 3 allies 11234 | -5/Factory | Infected Heavy with POISON.EXE 11388 | -5/Factory | Build established: Scavenger-Scrapper 11482 | -5/Factory | Entered Extension 11522 | -5/Extension | Rescued a captive Derelict 11523 | -5/Extension | Rescued a captive Derelict 11704 | -5/Extension | Energy Cycler disabled 11705 | -5/Extension | Rescued a captive Derelict 11705 | -5/Extension | Rescued a captive Derelict 11708 | -5/Extension | Rescued a captive Derelict 11708 | -5/Extension | Rescued a captive Derelict 11715 | -5/Extension | Rescued a captive Derelict 11721 | -5/Extension | Rescued a captive Derelict 11743 | -5/Extension | Lost 3 allies 11743 | -5/Extension | Rescued a captive Derelict 11873 | -5/Extension | Destroyed 7 combat bots 12082 | -5/Extension | First assault squad dispatched 12097 | -5/Extension | Repaired Hvy. Rocket Launcher 12257 | -5/Extension | Disrupted transfer network 12536 | -5/Extension | Spotted B-75 Beast 12541 | -5/Extension | Allies destroyed B-75 Beast 12550 | -5/Extension | Discovered exit to Factory (range 15) 12572 | -5/Extension | Extracted ID and sensor layout for unrecognized location from A7's data core 12850 | -5/Extension | Build established: Commander-Scrapper 13265 | -5/Extension | Build established: Commander-Mutant 13273 | -5/Extension | Discovered exit to Factory (range 10) 13276 | -5/Extension | Discovered new exit (range 6) 13292 | -5/Extension | Disrupted transfer network 13302 | -5/Extension | Identified exit to Cetus 13317 | -5/Extension | Destroyed 8 combat bots 13318 | -5/Extension | Entered Cetus 13318 | -5/Cetus | Accompanied by 11 allies 13337 | -5/Cetus | Spotted Cetus Guard 13337 | -5/Cetus | Spotted Cetus Guard 13338 | -5/Cetus | Allies destroyed Cetus Guard 13340 | -5/Cetus | Spotted Cetus Guard 13340 | -5/Cetus | Spotted Cetus Guard 13340 | -5/Cetus | Allies destroyed Cetus Guard 13361 | -5/Cetus | Destroyed Cetus Guard 13364 | -5/Cetus | Allies destroyed Cetus Guard 13392 | -5/Cetus | Lost 8 allies 13578 | -5/Cetus | Discovered new exit (range 16) 13614 | -5/Cetus | Entered Archives 13614 | -5/Archives | Accompanied by 3 allies 13651 | -5/Archives | Build established: Scavenger-Tank 13697 | -5/Archives | Discovered new exit (range 16) 13814 | -5/Archives | Discovered new exit (range 16) 13856 | -5/Archives | Entered Hub_04(d) 13856 | -5/Hub_04(d) | Accompanied by 1 ally 14207 | -5/Hub_04(d) | Discovered exit to Factory (range 9) 14210 | -5/Hub_04(d) | Network Hub disabled 14214 | -5/Hub_04(d) | Discovered exit to Factory (range 11) 14214 | -5/Hub_04(d) | Spotted Lightning 14214 | -5/Hub_04(d) | Spotted Lightning 14227 | -5/Hub_04(d) | Core integrity fell below 50% 14233 | -5/Hub_04(d) | System corruption reached 10% 14241 | -5/Hub_04(d) | Destroyed Lightning 14244 | -5/Hub_04(d) | Spotted Lightning 14245 | -5/Hub_04(d) | Spotted Lightning 14246 | -5/Hub_04(d) | Found Prototype Energy Cannon 14250 | -5/Hub_04(d) | Found Prototype Device 14250 | -5/Hub_04(d) | Identified Exp. EM Disruption Field 14257 | -5/Hub_04(d) | Entered Factory 14257 | -4/Factory | Evolved 2 slots: Utility x2 14267 | -4/Factory | Identified EMDS 14307 | -4/Factory | Build established: Scavenger-Mutant 14443 | -4/Factory | Repaired Centrium Medium Armor Plating? 14817 | -4/Factory | Discovered new exit (range 5) 15209 | -4/Factory | Discovered new exit (range 34) 15424 | -4/Factory | Scrapoid reinforcements arrived 15453 | -4/Factory | Found Scrap Suit 15479 | -4/Factory | Found Scrap Suit 15490 | -4/Factory | Lost 4 allies 15494 | -4/Factory | Lost 3 parts (1n2w) 15501 | -4/Factory | Attached Gun Armor, gained temporary slots: Weapon x2 15507 | -4/Factory | First assault squad dispatched 15547 | -4/Factory | Botcube activated 15565 | -4/Factory | Botcube completed mutation into wheeled form, armed with 1 launcher. 15618 | -4/Factory | Entered Upper Caves 15618 | -4/Upper Caves | Accompanied by 1 ally 15619 | -4/Upper Caves | Encountered a Warlord checkpoint 15626 | -4/Upper Caves | Spotted B-86 Titan 15698 | -4/Upper Caves | Lost 3 parts (1p2w) 15749 | -4/Upper Caves | Found Botcube 15792 | -4/Upper Caves | Build established: Scavenger-Scrapper 16362 | -4/Upper Caves | Discovered new exit (range 15) 16382 | -4/Upper Caves | Attracted the attention of an 0b10 checkpoint 16608 | -4/Upper Caves | Entered another Upper Caves area 16794 | -4/Upper Caves | Spotted B-86 Titan 16918 | -4/Upper Caves | Discovered new exit (range 17) 16922 | -4/Upper Caves | Learned location of 2 exits from Research 16967 | -4/Upper Caves | Learned Research garrison access intel 16969 | -4/Upper Caves | Found Alien Artifact 16969 | -4/Upper Caves | Identified Dimensional Node Initializer 16969 | -4/Upper Caves | Initialized slip node 16981 | -4/Upper Caves | Entered Warlord 16982 | -4/Warlord | Identified exit to Proximity Caves 17020 | -4/Warlord | System corruption cleaned by Quarantine Array 17318 | -4/Warlord | Learned Research emergency access door positions 17319 | -4/Warlord | Learned 4 Armory zone layouts 17319 | -4/Warlord | Learned 4 Access zone layouts 17319 | -4/Warlord | Learned 4 Quarantine zone layouts 17319 | -4/Warlord | Learned 4 Command zone layouts 17320 | -4/Warlord | Learned Research security intel 17320 | -4/Warlord | Learned Factory fabricator intel 17320 | -4/Warlord | Learned Armory terminal intel 17320 | -4/Warlord | Learned Armory garrison access intel 17331 | -4/Warlord | Build established: Scavenger-Tank 17476 | -4/Warlord | Rebuked by Warlord 17501 | -4/Warlord | Warlord's base attacked by MAIN.C 17622 | -4/Warlord | Found Prototype Energy Gun 17622 | -4/Warlord | Identified Vortex Rifle 17624 | -4/Warlord | Found Vortex Rifle 17630 | -4/Warlord | Found Prototype Energy Gun 17630 | -4/Warlord | Identified Vortex Shotgun 17639 | -4/Warlord | Found Vortex Shotgun 17851 | -4/Warlord | Warlord forces counterattacked 17902 | -4/Warlord | Spotted B-90 Cyclops 17902 | -4/Warlord | Spotted B-86 Titan 17906 | -4/Warlord | Destroyed B-90 Cyclops 17906 | -4/Warlord | Allies destroyed B-86 Titan 17908 | -4/Warlord | Spotted Striker 17937 | -4/Warlord | Spotted Executioner 17963 | -4/Warlord | Spotted Striker 17966 | -4/Warlord | Lost 8 allies 17968 | -4/Warlord | Destroyed Executioner 17969 | -4/Warlord | Spotted Striker 17983 | -4/Warlord | Destroyed Striker 18004 | -4/Warlord | Destroyed 7 combat bots 18009 | -4/Warlord | Spotted Executioner 18009 | -4/Warlord | Spotted Executioner 18011 | -4/Warlord | Lost 9 allies 18028 | -4/Warlord | Destroyed Executioner 18055 | -4/Warlord | Entered Proximity Caves 18056 | -3/Proximity Caves | Identified exit to Research 18057 | -3/Proximity Caves | Destroyed 12 combat bots 18058 | -3/Proximity Caves | Lost 5 allies 18167 | -3/Proximity Caves | Lost 5 parts (1p1n2u1w) 18267 | -3/Proximity Caves | Build established: Scavenger-Mutant 18308 | -3/Proximity Caves | Core integrity fell below 50% 18508 | -3/Proximity Caves | Attracted the attention of an 0b10 outpost 18555 | -3/Proximity Caves | Entered Research 18555 | -3/Research | Evolved 2 slots: Utility x1, Weapon x1 18556 | -3/Research | Identified exit to Research 18556 | -3/Research | Identified exit to Armory 18556 | -3/Research | Identified exit to Quarantine 18561 | -3/Research | Loaded intel: 4 garrison access locations 18562 | -3/Research | Lost 3 parts (1p1n1w) 19004 | -3/Research | Spotted B-86 Titan 19034 | -3/Research | Entered another Research area 19034 | -2/Research | Evolved 2 slots: Propulsion x1, Utility x1 19035 | -2/Research | Identified exit to Access 19045 | -2/Research | Lost 5 parts (1p1n2u1w) 19260 | -2/Research | Lost 3 parts (1n1u1w) 19462 | -2/Research | Botcube activated 19466 | -2/Research | Botcube completed mutation into flying form (unarmed). 19498 | -2/Research | System corruption reached 10% 19603 | -2/Research | Scrapoids reinforcements arrived? 19632 | -2/Research | Entered Access 19632 | -1/Access | Evolved 2 slots: Propulsion x2 19746 | -1/Access | Discovered new exit (range 6) 19747 | *** | Escaped! Last Messages --------------- 19718_ Acquired Imp. System Guard. 19726_ Penetrated by Slug. 19727_ Slug penetrates Wall. 19727_ Penetrated by Slug. 19727_ Terminal disabled. 19728_ Adv. Heat Sink destroyed. 19729_ Slug penetrates Wall. 19729_ Penetrated by Slug. 19731_ W-44 Eye sends out distress signal. 19734_ ALERT: Hostiles spotted, dispatching reinforcements to Terminal A021. 19737_ W-44 Eye sends out distress signal. 19737_ Slug penetrates Wall. 19737_ Recoil Nullifier destroyed. 19737_ Slug penetrates Wall. 19745_ Connecting with Terminal... >>Open(Door) Sealed Barrier opened. 19746_ The Access Shell folds into the floor. 19746_ EXIT=FOUND Map ----- +----------------------------------------------------+ | ???????????????????????????# # #????????? | | ???????????????????????????# * " + #????????? | | ???????????????????????????# """ # #????????? | | ???????????????????????????? """ # #????????? | | ???????????????????????????# " ?# #????????? | | ???????????????????????????? ?# #????????? | | ???????????????????????????? ??# #????????? | | ?????????????????????????????######??# #????????? | | ????????????????????????????######???# +????????? | | ????????????????????????????# ??# #????????? | | ????????????????????????????# ??# #????????? | | ????????????????????????????# ?# #????????? | | ????????????????????????????# ?# #????????? | | ????????????????????????????# # +????????? | | ????????????????????????????# " # #????????? | | ????????????????????????????# """ + +????????? | | ????????????????????????????# """ # #????????? | | ????????????????????????????# " # #????????? | | ????????????????????????????########?# #????????? | | ?????????????????????????????###?????# #????????? | | ????????????????????########## ####### #????????? | | ????????????????????" #????????? | | ????????????????????" #????????? | | ????????????????????" #????????? | | ????????????????????" u#????????? | | ????????????????????" "@ #????????? | | ????????????????????" "" #????????? | | ????????????????????" #????????? | | ????????????????????" #????????? | | ????????????????????" """ """ #????????? | | ????????????????????" """T""" #????????? | | ????????????????????########## ####### #????????? | | ?????????????????????????????###?????# #????????? | | ?????????????????????????????????????# ########## | | ?????????????????????????????????????# # | | ?????????????????????????????######### # | | ????????????????????????????? " + + " | | ????????????????????????????? """ # + "" | | ????????????????????????????? """ # # "" | | ????????????????????????????? " # # "" | | ????????????????????????????? # # "" | | ????????????????????????????? # # "" | | ????????????????????????????? # # "" | | ????????????????????????????? # # " | | ????????????????????????????? # # | | ????????????????????????????? # # | | ?????????????????????????????"" """ # ########## | | ?????????????????????????????""T""" # #????????? | | ?o???????????????????????????????????????????????? | | ?????????????????????????????????????????????????? | +----------------------------------------------------+ Best States ------------- Heat Dissipation 94 Coolant Potential 65 Energy Generation 46 Energy Capacity 1000 Matter Stores 300 Matter Capacity 450 Sight Range 20 Robot Scan Range 14 Terrain Scan Density 10 Jamming Range 14 Power Amplification 30 Corruption Containment 12 Armor Coverage 1260 Resistance: KI 10 Resistance: TH 15 Resistance: EM 75 Evasion (%) 64 Targeting Accuracy 10 Armor Integrity Analysis 40 Recoil Reduction 6 Authchip Count 1 Trap Extractor Capacity 6 Item Schematics ----------------- Rocket Launcher | -8/Materials | Scanalyzed Antigrav Array | -3/Research | Scanalyzed Robot Schematics ------------------ None Fabricated ------------ Nothing Alien Tech Used ----------------- Dimensional Node Initializer Achievements -------------- None Challenges ------------ None Game ------ Seed ElectrostormServoVibroblade Manual? 0 Play Time 03:49:09 Cumulative 397.8 hours Start 2025.01.07 @ 14:17:58 End 2025.01.08 @ 14:12:17 Sessions 5 Manual Loads 0 Difficulty Rogue Special Mode None Game No. 169 Rogue 169 Adventurer 0 Explorer 0 Win Type 0 Total 14 Types 12/0/1/1/0/0/0/0/0 Lore% 71 Gallery% 79 Achievement% 68 Wizard Run 0 Options --------- Layout 0 ASCII 0 Keyboard 0 Movement Numpad Keybinds 0 Fullscreen 1 Font 24/Smallcaps Map View 76x50 Zoom Use 0% Tactical HUD 1 Map Filters NONE Filters NONE Steam 1 RUN: d019cae5-d25a-43ff-bbf6-a5f0aa29f5d3